fUST/lending_fUST_20250527
["ID","MTS","AMOUNT","RATE_DAILY","PERIOD"]
[362448711,1748299764360,-430.0,0.00020043,2]
[362448712,1748299764382,-430.0,0.00020043,2]
[362448713,1748299764406,-430.0,0.00020043,2]
[362448714,1748299764428,-705.86,0.00020043,2]
[362448715,1748299764451,-430.0,0.00020043,2]
[362448716,1748299764474,-430.0,0.00020043,2]
[362448717,1748299764496,-430.0,0.00020043,2]
[362448718,1748299764518,-430.0,0.00020043,2]
[362448719,1748299764541,-430.0,0.00020043,2]
[362448720,1748299764563,-430.0,0.00020043,2]
[362448721,1748299764586,-430.0,0.00020043,2]
[362448722,1748299764609,-430.0,0.00020043,2]
[362448723,1748299764632,-430.0,0.00020043,2]
[362448724,1748299764655,-820.64,0.00020043,2]
[362448725,1748299764680,-430.0,0.00020043,2]
[362448726,1748299764701,-547.65,0.00020043,2]
[362448727,1748299764726,-1391.16,0.00020043,2]
[362448728,1748299764748,-473.56,0.00020043,2]
[362448729,1748299764774,-450.82,0.00020043,2]
[362448730,1748299764796,-430.0,0.00020043,2]
[362448731,1748299764817,-3269.1895805,0.00020107,2]
[362448732,1748299764840,-430.0,0.00020273,2]
[362448733,1748299764967,-430.0,0.00020273,2]
[362448734,1748299764989,-430.0,0.00020273,2]
[362448735,1748299765011,-2404.41,0.00020273,2]
[362448736,1748299765031,-430.0,0.00020273,2]
[362448737,1748299765052,-430.0,0.00020273,2]
[362448738,1748299765079,-430.0,0.00020273,2]
[362448739,1748299765104,-430.0,0.00020273,2]
[362448740,1748299765128,-420.56,0.00020273,2]
[362448741,1748299765155,-430.0,0.00020273,2]
[362448742,1748299765180,-430.0,0.00020273,2]
[362448743,1748299765204,-2704.46,0.00020273,2]
[362448744,1748299765229,-430.0,0.00020273,2]
[362448745,1748299765255,-498.15,0.00020273,2]
[362448746,1748299765283,-2976.96,0.00020273,2]
[362448747,1748299765306,-430.0,0.00020273,2]
[362448748,1748299765328,-430.0,0.00020273,2]
[362448749,1748299765348,-430.0,0.00020273,2]
[362448750,1748299765372,-734.66,0.00020273,2]
[362448751,1748299765396,-430.0,0.00020273,2]
[362448752,1748299765419,-593.96,0.00020273,2]
[362448753,1748299765443,-430.0,0.00020273,2]
[362448754,1748299765465,-430.0,0.00020273,2]
[362448755,1748299765488,-430.0,0.00020273,2]
[362448756,1748299765510,-430.0,0.00020314,2]
[362448757,1748299765531,-430.0,0.00020314,2]
[362448758,1748299765553,-430.0,0.00020314,2]
[362448759,1748299765575,-656.47,0.00020314,2]
[362448760,1748299765595,-430.0,0.00020314,2]
[362448761,1748299765616,-430.0,0.00020314,2]
[362448762,1748299765637,-430.0,0.00020314,2]
[362448763,1748299765658,-430.0,0.00020314,2]
[362448764,1748299765681,-530.0,0.00020314,2]
[362448765,1748299765704,-430.0,0.00020314,2]
[362448766,1748299765726,-430.0,0.00020314,2]
[362448767,1748299765749,-430.0,0.00020314,2]
[362448768,1748299765771,-430.0,0.00020314,2]
[362448769,1748299765795,-430.0,0.00020314,2]
[362448770,1748299765816,-430.0,0.00020314,2]
[362448771,1748299765837,-430.0,0.00020314,2]
[362448772,1748299765858,-430.0,0.00020314,2]
[362448773,1748299765879,-430.0,0.00020314,2]
[362448774,1748299765899,-430.0,0.00020314,2]
[362448775,1748299765919,-430.0,0.00020314,2]
[362448776,1748299765940,-430.0,0.00020314,2]
[362448777,1748299765961,-430.0,0.00020314,2]
[362448778,1748299765982,-648.49,0.00020314,2]
[362448779,1748299766002,-430.0,0.00020314,2]
[362448780,1748299766023,-430.0,0.00020314,2]
[362448781,1748299766043,-430.0,0.00020314,2]
[362448782,1748299766064,-430.0,0.00020314,2]
[362448783,1748299766087,-430.0,0.00020314,2]
[362448784,1748299766112,-430.0,0.00020314,2]
[362448785,1748299766135,-430.0,0.00020314,2]
[362448786,1748299766159,-430.0,0.00020314,2]
[362448787,1748299766183,-430.0,0.00020314,2]
[362448788,1748299766205,-470.0,0.00020314,2]
[362448789,1748299766231,-257.85562789,0.00020314,2]
[362448790,1748299766255,-430.0,0.00020314,2]
[362448791,1748299766279,-430.0,0.00020314,2]
[362448792,1748299766302,-430.0,0.00020314,2]
[362448793,1748299766324,-430.0,0.00020314,2]
[362448794,1748299766344,-430.0,0.00020314,2]
[362448795,1748299766366,-430.0,0.00020314,2]
[362448796,1748299766393,-430.0,0.00020314,2]
[362448797,1748299766417,-430.0,0.00020314,2]
[362448798,1748299766440,-430.0,0.00020314,2]
[362448799,1748299766461,-430.0,0.00020314,2]
[362448800,1748299766485,-430.0,0.00020314,2]
[362448801,1748299766508,-430.0,0.00020314,2]
[362448802,1748299766531,-430.0,0.00020314,2]
[362448803,1748299766554,-430.0,0.00020314,2]
[362448804,1748299766578,-430.0,0.00020314,2]
[362448805,1748299766602,-430.0,0.00020316,2]
[362448806,1748299766624,-400.0,0.00020316,2]
[362448807,1748299766646,-430.0,0.00020316,2]
[362448808,1748299766668,-430.0,0.00020316,2]
[362448809,1748299766695,-430.0,0.00020316,2]
[362448810,1748299766718,-430.0,0.00020316,2]
[362448811,1748299766739,-430.0,0.00020316,2]
[362448812,1748299766762,-430.0,0.00020316,2]
[362448813,1748299766783,-188.0,0.00020316,2]
[362448814,1748299766804,-430.0,0.00020316,2]
[362448815,1748299766825,-430.0,0.00020316,2]
[362448816,1748299766846,-430.0,0.00020316,2]
[362448817,1748299766868,-430.0,0.00020316,2]
[362448818,1748299766889,-430.0,0.00020316,2]
[362448819,1748299766910,-430.0,0.00020316,2]
[362448820,1748299766931,-430.0,0.00020316,2]
[362448821,1748299766953,-430.0,0.00020316,2]
[362448822,1748299766974,-430.0,0.00020316,2]
[362448823,1748299766994,-430.0,0.00020316,2]
[362448824,1748299767016,-430.0,0.00020316,2]
[362448825,1748299767036,-430.0,0.00020317,2]
[362448826,1748299767164,-430.0,0.00020317,2]
[362448827,1748299767186,-705.86,0.00020317,2]
[362448828,1748299767209,-430.0,0.00020317,2]
[362448829,1748299767230,-510.0,0.00020317,2]
[362448830,1748299767252,-430.0,0.00020317,2]
[362448831,1748299767273,-430.0,0.00020317,2]
[362448832,1748299767294,-430.0,0.00020317,2]
[362448833,1748299767315,-430.0,0.00020317,2]
[362448834,1748299767336,-430.0,0.00020317,2]
[362448835,1748299767357,-430.0,0.00020317,2]
[362448836,1748299767378,-430.0,0.00020317,2]
[362448837,1748299767400,-820.64,0.00020317,2]
[362448838,1748299767421,-430.0,0.00020317,2]
[362448839,1748299767441,-547.65,0.00020317,2]
[362448840,1748299767464,-1391.16,0.00020317,2]
[362448841,1748299767486,-473.56,0.00020317,2]
[362448842,1748299767507,-450.82,0.00020317,2]
[362448843,1748299767530,-412.61096598,0.00020317,2]
[362448844,1748299767551,-444.45270032,0.00020325,2]
[362448845,1748299767571,-162.34470695,0.00020325,2]
[362448846,1748299767592,-500.0,0.00020325,2]
[362448847,1748299767612,-500.0,0.00020325,2]
[362448848,1748299767633,-500.0,0.00020325,2]
[362448849,1748299767653,-502.11224736,0.00020325,2]
[362448850,1748299767676,-478.26683112,0.00020325,2]
[362448851,1748299767698,-500.0,0.00020325,2]
[362448852,1748299767719,-500.0,0.00020325,2]
[362448853,1748299767740,-502.8240996,0.00020325,2]
[362448854,1748299767761,-213.4657481,0.00020325,2]
[362448855,1748299767781,-500.0,0.00020325,2]
[362448856,1748299767803,-500.0,0.00020325,2]
[362448857,1748299767824,-500.0,0.00020325,2]
[362448858,1748299767845,-270.77858986,0.00020325,2]
[362448859,1748299767865,-503.43177322,0.00020325,2]
[362448860,1748299767886,-316.93365105,0.00020325,2]
[362448861,1748299767906,-153.57964645,0.00020325,2]
[362448862,1748299767928,-500.0,0.00020325,2]
[362448863,1748299767949,-201.65598874,0.00020325,2]
[362448864,1748299767970,-500.0,0.00020325,2]
[362448865,1748299767991,-500.0,0.00020325,2]
[362448866,1748299768011,-178.90916614,0.00020325,2]
[362448867,1748299768032,-500.0,0.00020325,2]
[362448868,1748299768053,-502.05588619,0.00020325,2]
[362448869,1748299768074,-500.0,0.00020325,2]
[362448870,1748299768095,-500.0,0.00020325,2]
[362448871,1748299768114,-500.0,0.00020325,2]
[362448872,1748299768136,-500.0,0.00020325,2]
[362448873,1748299768157,-500.0,0.00020421,2]
[362448874,1748299768180,-420.0,0.00020457,2]
[362448875,1748299768202,-420.0,0.00020458,2]
[362448876,1748299768224,-430.0,0.00020547,2]
[362448877,1748299768245,-430.0,0.00020547,2]
[362448878,1748299768266,-430.0,0.00020547,2]
[362448879,1748299768289,-2404.41,0.00020547,2]
[362448880,1748299768312,-430.0,0.00020547,2]
[362448881,1748299768333,-430.0,0.00020547,2]
[362448882,1748299768355,-430.0,0.00020547,2]
[362448883,1748299768377,-430.0,0.00020547,2]
[362448884,1748299768398,-430.0,0.00020547,2]
[362448885,1748299768421,-430.0,0.00020547,2]
[362448886,1748299768444,-2704.46,0.00020547,2]
[362448887,1748299768466,-430.0,0.00020547,2]
[362448888,1748299768489,-498.15,0.00020547,2]
[362448889,1748299768512,-2976.96,0.00020547,2]
[362448890,1748299768534,-400.0,0.00020547,2]
[362448891,1748299768556,-430.0,0.00020547,2]
[362448892,1748299768577,-430.0,0.00020547,2]
[362448893,1748299768598,-734.66,0.00020547,2]
[362448894,1748299768618,-430.0,0.00020547,2]
[362448895,1748299768638,-593.96,0.00020547,2]
[362448896,1748299768661,-430.0,0.00020547,2]
[362448897,1748299768685,-430.0,0.00020547,2]
[362448898,1748299768707,-430.0,0.00020547,2]
[362448899,1748299768730,-430.0,0.00020588,2]
[362448900,1748299768752,-430.0,0.00020588,2]
[362448901,1748299768775,-430.0,0.00020588,2]
[362448902,1748299768798,-656.47,0.00020588,2]
[362448903,1748299768820,-430.0,0.00020588,2]
[362448904,1748299768842,-430.0,0.00020588,2]
[362448905,1748299768863,-430.0,0.00020588,2]
[362448906,1748299768884,-430.0,0.00020588,2]
[362448907,1748299768905,-430.0,0.00020588,2]
[362448908,1748299768926,-430.0,0.00020588,2]
[362448909,1748299768948,-430.0,0.00020588,2]
[362448910,1748299768971,-430.0,0.00020588,2]
[362448911,1748299768993,-430.0,0.00020588,2]
[362448912,1748299769015,-430.0,0.00020588,2]
[362448913,1748299769038,-430.0,0.00020588,2]
[362448914,1748299769061,-430.0,0.00020588,2]
[362448915,1748299769187,-430.0,0.00020588,2]
[362448916,1748299769209,-430.0,0.00020588,2]
[362448917,1748299769230,-92.64089585,0.00020588,2]
[362448918,1748299769362,1116.48,0.00019178,2]
[362448919,1748299769394,1116.48,0.00019452,2]
[362448920,1748299769473,1116.48,0.00019726,2]
[362448921,1748299769658,-1116.48,0.0002,2]
[362448922,1748299769683,-1116.48,0.00020273,2]
[362448923,1748299769705,-1116.48,0.00020547,2]
[362448924,1748299769728,-337.35910415,0.00020588,2]
[362448925,1748299769750,-430.0,0.00020588,2]
[362448926,1748299769772,-648.49,0.00020588,2]
[362448927,1748299769793,-430.0,0.00020588,2]
[362448928,1748299769815,-430.0,0.00020588,2]
[362448929,1748299769836,-430.0,0.00020588,2]
[362448930,1748299769857,-430.0,0.00020588,2]
[362448931,1748299769878,-430.0,0.00020588,2]
[362448932,1748299769899,-430.0,0.00020588,2]
[362448933,1748299769920,-430.0,0.00020588,2]
[362448934,1748299769941,-430.0,0.00020588,2]
[362448935,1748299769962,-412.89542418,0.00020588,2]
[362448936,1748299769984,-430.0,0.00020588,2]
[362448937,1748299770005,-430.0,0.00020588,2]
[362448938,1748299770027,-430.0,0.00020588,2]
[362448939,1748299770048,-430.0,0.00020588,2]
[362448940,1748299770070,-430.0,0.00020588,2]
[362448941,1748299770091,-440.0,0.00020588,2]
[362448942,1748299770113,-430.0,0.00020588,2]
[362448943,1748299770135,-430.0,0.00020588,2]
[362448944,1748299770158,-430.0,0.00020588,2]
[362448945,1748299770180,-430.0,0.00020588,2]
[362448946,1748299770202,-430.0,0.00020588,2]
[362448947,1748299770223,-430.0,0.00020588,2]
[362448948,1748299770244,-430.0,0.00020588,2]
[362448949,1748299770264,-430.0,0.00020588,2]
[362448950,1748299770286,-430.0,0.00020588,2]
[362448951,1748299770306,-470.0,0.0002059,2]
[362448952,1748299770327,-404.51258934,0.0002059,2]
[362448953,1748299770348,-430.0,0.0002059,2]
[362448954,1748299770369,-430.0,0.0002059,2]
[362448955,1748299770390,-430.0,0.0002059,2]
[362448956,1748299770411,-430.0,0.0002059,2]
[362448957,1748299770431,-430.0,0.0002059,2]
[362448958,1748299770451,-158.89387315,0.0002059,2]
[362448959,1748299770471,-430.0,0.0002059,2]
[362448960,1748299770492,-430.0,0.0002059,2]
[362448961,1748299770512,-430.0,0.0002059,2]
[362448962,1748299770532,-430.0,0.0002059,2]
[362448963,1748299770553,-430.0,0.0002059,2]
[362448964,1748299770574,-430.0,0.0002059,2]
[362448965,1748299770594,-430.0,0.0002059,2]
[362448966,1748299770614,-430.0,0.0002059,2]
[362448967,1748299770636,-430.0,0.0002059,2]
[362448968,1748299770656,-430.0,0.00020591,2]
[362448969,1748299770678,-430.0,0.00020591,2]
[362448970,1748299770701,-430.0,0.00020591,2]
[362448971,1748299770723,-430.0,0.00020591,2]
[362448972,1748299770744,-430.0,0.00020591,2]
[362448973,1748299770767,-430.0,0.00020591,2]
[362448974,1748299770788,-430.0,0.00020591,2]
[362448975,1748299770809,-430.0,0.00020591,2]
[362448976,1748299770831,-820.64,0.00020591,2]
[362448977,1748299770958,-430.0,0.00020591,2]
[362448978,1748299770981,-547.65,0.00020591,2]
[362448979,1748299771003,-1391.16,0.00020591,2]
[362448980,1748299771025,-473.56,0.00020591,2]
[362448981,1748299771046,-450.82,0.00020591,2]
[362448982,1748299771066,-1130.06330752,0.00020599,2]
[362448983,1748299771088,-316.66,0.00020635,2]
[362448984,1748299771108,-430.0,0.00020679,2]
[362448985,1748299771129,-430.0,0.00020679,2]
[362448986,1748299771149,-430.0,0.00020679,2]
[362448987,1748299771170,-375.60244509,0.00020679,2]
[362448988,1748299771191,-430.0,0.00020679,2]
[362448989,1748299771210,-430.0,0.00020679,2]
[362448990,1748299771231,-886.16,0.00020679,2]
[362448991,1748299771252,-430.0,0.00020679,2]
[362448992,1748299771274,-1199.43,0.00020679,2]
[362448993,1748299771294,-430.0,0.00020679,2]
[362448994,1748299771315,-1248.6,0.00020679,2]
[362448995,1748299771337,-430.0,0.00020679,2]
[362448996,1748299771360,-430.0,0.00020679,2]
[362448997,1748299771384,-1417.5,0.00020679,2]
[362448998,1748299771410,-430.0,0.00020679,2]
[362448999,1748299771434,-430.0,0.00020679,2]
[362449000,1748299771456,-433.05301041,0.00020701,2]
[362449001,1748299771476,-500.0,0.00020752,2]
[362449002,1748299771501,-430.0,0.00020775,2]
[362449003,1748299771525,-430.0,0.00020821,2]
[362449004,1748299771549,-430.0,0.00020821,2]
[362449005,1748299771571,-430.0,0.00020821,2]
[362449006,1748299771596,-2404.41,0.00020821,2]
[362449007,1748299771617,-430.0,0.00020821,2]
[362449008,1748299771640,-430.0,0.00020821,2]
[362449009,1748299771664,-430.0,0.00020821,2]
[362449010,1748299771690,-430.0,0.00020821,2]
[362449011,1748299771712,-430.0,0.00020821,2]
[362449012,1748299771736,-430.0,0.00020821,2]
[362449013,1748299771764,-2704.46,0.00020821,2]
[362449014,1748299771786,-430.0,0.00020821,2]
[362449015,1748299771809,-498.15,0.00020821,2]
[362449016,1748299771830,-2976.96,0.00020821,2]
[362449017,1748299771850,-430.0,0.00020821,2]
[362449018,1748299771870,-430.0,0.00020821,2]
[362449019,1748299771892,-734.66,0.00020821,2]
[362449020,1748299771913,-430.0,0.00020821,2]
[362449021,1748299771934,-593.96,0.00020821,2]
[362449022,1748299771956,-430.0,0.00020821,2]
[362449023,1748299771977,-430.0,0.00020821,2]
[362449024,1748299771998,-430.0,0.00020821,2]
[362449025,1748299772019,-1116.48,0.00020821,2]
[362449026,1748299772040,-430.0,0.00020862,2]
[362449027,1748299772060,-430.0,0.00020862,2]
[362449028,1748299772080,-430.0,0.00020862,2]
[362449029,1748299772101,-656.47,0.00020862,2]
[362449030,1748299772121,-430.0,0.00020862,2]
[362449031,1748299772140,-430.0,0.00020862,2]
[362449032,1748299772160,-430.0,0.00020862,2]
[362449033,1748299772181,-430.0,0.00020862,2]
[362449034,1748299772201,-430.0,0.00020862,2]
[362449035,1748299772221,-488.16965099,0.00020862,2]
[362449036,1748299772243,-430.0,0.00020862,2]
[362449037,1748299772263,-430.0,0.00020862,2]
[362449038,1748299772284,-430.0,0.00020862,2]
[362449039,1748299772304,-430.0,0.00020862,2]
[362449040,1748299772324,-430.0,0.00020862,2]
[362449041,1748299772344,-430.0,0.00020862,2]
[362449042,1748299772365,-430.0,0.00020862,2]
[362449043,1748299772385,-430.0,0.00020862,2]
[362449044,1748299772405,-430.0,0.00020862,2]
[362449045,1748299772426,-430.0,0.00020862,2]
[362449046,1748299772447,-648.49,0.00020862,2]
[362449047,1748299772467,-430.0,0.00020862,2]
[362449048,1748299772487,-430.0,0.00020862,2]
[362449049,1748299772507,-430.0,0.00020862,2]
[362449050,1748299772528,-420.96340995,0.00020862,2]
[362449051,1748299772548,-430.0,0.00020862,2]
[362449052,1748299772568,-430.0,0.00020862,2]
[362449053,1748299772589,-430.0,0.00020862,2]
[362449054,1748299772609,-430.0,0.00020862,2]
[362449055,1748299772630,-430.0,0.00020862,2]
[362449056,1748299772651,-430.0,0.00020862,2]
[362449057,1748299772672,-430.0,0.00020862,2]
[362449058,1748299772695,-470.0,0.00020862,2]
[362449059,1748299772836,-430.0,0.00020862,2]
[362449060,1748299772861,-430.0,0.00020862,2]
[362449061,1748299772882,-430.0,0.00020862,2]
[362449062,1748299772903,-430.0,0.00020862,2]
[362449063,1748299772924,-439.72825628,0.00020862,2]
[362449064,1748299772945,-151.0,0.00020862,2]
[362449065,1748299772966,-430.0,0.00020862,2]
[362449066,1748299772986,-307.74329638,0.00020862,2]
[362449067,1748299773007,-430.0,0.00020862,2]
[362449068,1748299773027,-430.0,0.00020862,2]
[362449069,1748299773048,-430.0,0.00020862,2]
[362449070,1748299773069,-209.11987334,0.00020864,2]
[362449071,1748299773089,-430.0,0.00020864,2]
[362449072,1748299773110,-430.0,0.00020864,2]
[362449073,1748299773134,-430.0,0.00020864,2]
[362449074,1748299773157,-430.0,0.00020864,2]
[362449075,1748299773178,-430.0,0.00020864,2]
[362449076,1748299773199,-430.0,0.00020864,2]
[362449077,1748299773220,-430.0,0.00020864,2]
[362449078,1748299773240,-212.140552,0.00020864,2]
[362449079,1748299773261,-212.140552,0.00020864,2]
[362449080,1748299773283,-430.0,0.00020864,2]
[362449081,1748299773304,-490.0,0.00020864,2]
[362449082,1748299773325,-151.0,0.00020864,2]
[362449083,1748299773347,-151.0,0.00020864,2]
[362449084,1748299773368,-430.0,0.00020864,2]
[362449085,1748299773389,-430.0,0.00020864,2]
[362449086,1748299773410,-430.0,0.00020864,2]
[362449087,1748299773431,-151.0,0.00020865,2]
[362449088,1748299773453,-1266.033483,0.00020865,2]
[362449089,1748299773475,-430.0,0.00020865,2]
[362449090,1748299773497,-1266.033483,0.00020865,2]
[362449091,1748299773518,-430.0,0.00020865,2]
[362449092,1748299773543,-430.0,0.00020865,2]
[362449093,1748299773564,-430.0,0.00020865,2]
[362449094,1748299773587,-430.0,0.00020865,2]
[362449095,1748299773608,-430.0,0.00020865,2]
[362449096,1748299773631,-430.0,0.00020865,2]
[362449097,1748299773653,-430.0,0.00020865,2]
[362449098,1748299773677,-820.64,0.00020865,2]
[362449099,1748299773707,-430.0,0.00020865,2]
[362449100,1748299773745,-547.65,0.00020865,2]
[362449101,1748299773782,-1391.16,0.00020865,2]
[362449102,1748299773817,-473.56,0.00020865,2]
[362449103,1748299773855,-450.82,0.00020865,2]
[362449104,1748299773887,-346.0162765,0.00020873,2]
[362449105,1748299773920,-500.84758806,0.00020873,2]
[362449106,1748299773951,-1000.0,0.00020873,2]
[362449107,1748299773980,-500.0,0.00020873,2]
[362449108,1748299774016,-500.01618213,0.00020873,2]
[362449109,1748299774052,-1000.0,0.00020873,2]
[362449110,1748299774083,-1000.0,0.00020873,2]
[362449111,1748299774109,-1000.0,0.00020873,2]
[362449112,1748299774145,-1000.0,0.00020873,2]
[362449113,1748299774173,-1000.0,0.00020873,2]
[362449114,1748299774203,-1000.0,0.00020873,2]
[362449115,1748299774230,-1000.0,0.00020873,2]
[362449116,1748299774259,-251.8,0.000209,2]
[362449117,1748299774288,-500.0,0.00020937,2]
[362449118,1748299774318,-430.0,0.00020953,2]
[362449119,1748299774347,-258.317488,0.00020953,2]
[362449120,1748299774376,-430.0,0.00020953,2]
[362449121,1748299774404,-430.0,0.00020953,2]
[362449122,1748299774433,-430.0,0.00020953,2]
[362449123,1748299774462,-151.0,0.00020953,2]
[362449124,1748299774490,-151.0,0.00020953,2]
[362449125,1748299774519,-886.16,0.00020953,2]
[362449126,1748299774547,-430.0,0.00020953,2]
[362449127,1748299774577,-1199.43,0.00020953,2]
[362449128,1748299774604,-430.0,0.00020953,2]
[362449129,1748299774634,-1248.6,0.00020953,2]
[362449130,1748299774660,-430.0,0.00020953,2]
[362449131,1748299774686,-430.0,0.00020953,2]
[362449132,1748299774708,-1417.5,0.00020953,2]
[362449133,1748299774732,-430.0,0.00020953,2]
[362449134,1748299774757,-430.0,0.00020953,2]
[362449135,1748299774778,-307.80381802,0.00020955,2]
[362449136,1748299774801,-151.0,0.00020969,2]
[362449137,1748299774822,-1000.0,0.00020969,2]
[362449138,1748299775031,-430.0,0.00021049,2]
[362449139,1748299775074,-430.0,0.00021095,2]
[362449140,1748299775095,-540.0,0.00021095,2]
[362449141,1748299775114,-545.37854421,0.00021095,2]
[362449142,1748299775135,-2404.41,0.00021095,2]
[362449143,1748299775155,-430.0,0.00021095,2]
[362449144,1748299775175,-430.0,0.00021095,2]
[362449145,1748299775197,-430.0,0.00021095,2]
[362449146,1748299775219,-430.0,0.00021095,2]
[362449147,1748299775241,-430.0,0.00021095,2]
[362449148,1748299775265,-430.0,0.00021095,2]
[362449149,1748299775289,-2704.46,0.00021095,2]
[362449150,1748299775312,-430.0,0.00021095,2]
[362449151,1748299775334,-498.15,0.00021095,2]
[362449152,1748299775356,-2976.96,0.00021095,2]
[362449153,1748299775377,-430.0,0.00021095,2]
[362449154,1748299775397,-430.0,0.00021095,2]
[362449155,1748299775421,-734.66,0.00021095,2]
[362449156,1748299775444,-430.0,0.00021095,2]
[362449157,1748299775464,-593.96,0.00021095,2]
[362449158,1748299775485,-430.0,0.00021095,2]
[362449159,1748299775506,-430.0,0.00021095,2]
[362449160,1748299775527,-430.0,0.00021095,2]
[362449161,1748299775548,-1116.48,0.00021095,2]
[362449162,1748299775569,-340.007,0.00021104,2]
[362449163,1748299775588,-250.28621281,0.00021117,2]
[362449164,1748299775608,-500.0,0.00021123,2]
[362449165,1748299775628,-500.0,0.00021123,2]
[362449166,1748299775648,-430.0,0.00021136,2]
[362449167,1748299775668,-430.0,0.00021136,2]
[362449168,1748299775692,-430.0,0.00021136,2]
[362449169,1748299775714,-656.47,0.00021136,2]
[362449170,1748299775736,-430.0,0.00021136,2]
[362449171,1748299775758,-430.0,0.00021136,2]
[362449172,1748299775779,-430.0,0.00021136,2]
[362449173,1748299775800,-430.0,0.00021136,2]
[362449174,1748299775821,-430.0,0.00021136,2]
[362449175,1748299775843,-430.0,0.00021136,2]
[362449176,1748299775864,-430.0,0.00021136,2]
[362449177,1748299775885,-430.0,0.00021136,2]
[362449178,1748299775905,-430.0,0.00021136,2]
[362449179,1748299775926,-430.0,0.00021136,2]
[362449180,1748299775949,-430.0,0.00021136,2]
[362449181,1748299775970,-430.0,0.00021136,2]
[362449182,1748299775990,-369.66,0.00021136,2]
[362449183,1748299776011,-430.0,0.00021136,2]
[362449184,1748299776032,-648.49,0.00021136,2]
[362449185,1748299776052,-430.0,0.00021136,2]
[362449186,1748299776073,-430.0,0.00021136,2]
[362449187,1748299776093,-430.0,0.00021136,2]
[362449188,1748299776115,-430.0,0.00021136,2]
[362449189,1748299776136,-430.0,0.00021136,2]
[362449190,1748299776156,-430.0,0.00021136,2]
[362449191,1748299776176,-430.0,0.00021136,2]
[362449192,1748299776198,-430.0,0.00021136,2]
[362449193,1748299776218,-167.07815704,0.00021136,2]
[362449194,1748299776239,-430.0,0.00021136,2]
[362449195,1748299776260,-430.0,0.00021136,2]
[362449196,1748299776280,-430.0,0.00021136,2]
[362449197,1748299776301,-430.0,0.00021136,2]
[362449198,1748299776322,-430.0,0.00021136,2]
[362449199,1748299776342,-491.59981371,0.00021136,2]
[362449200,1748299776363,-430.0,0.00021136,2]
[362449201,1748299776384,-430.0,0.00021136,2]
[362449202,1748299776404,-430.0,0.00021138,2]
[362449203,1748299776426,-430.0,0.00021138,2]
[362449204,1748299776447,-430.0,0.00021138,2]
[362449205,1748299776468,-430.0,0.00021138,2]
[362449206,1748299776489,-430.0,0.00021138,2]
[362449207,1748299776511,-456.96354064,0.00021138,2]
[362449208,1748299776537,-408.85240356,0.00021138,2]
[362449209,1748299776559,-430.0,0.00021138,2]
[362449210,1748299776583,-430.0,0.00021139,2]